Workbook

Sheet Sheet1
A2: Статистическая форма ННШ-M за 2016 год
A3: «Сведения о параметрах реализации национальной образовательной инициативы «Наша новая школа»
B5: Введите значения в поля желтого цвета.
A6: Наименование субъекта РФ | C6: Томская область
A7: Наименование муниципального образования | C7: Городской округ Стрежевой
A8: Количество зарегистрированных общеобразовательных организаций | C8: 8
A9: Количество общеобразовательных организаций, предоставивших данные | C9: 8
A11: № | B11: Наименование показателя | C11: Ед. измерения | D11: Всего
A12: 1. ОБЩИЕ ПОКАЗАТЕЛИ | E12: 1 шк | F12: 2 шк | G12: 3 шк | H12: 4 шк | I12: 5 шк | J12: 6 шк | K12: 7 шк | L12: осош | M12: Проценты
A13: 1.1. | B13: Численность обучающихся общеобразовательных организаций на сентябрь отчетного года | C13: человек | D13: =SUM(E13:L13) -> 4956 | E13: 504 | F13: 566 | G13: 627 | H13: 990 | I13: 1084 | J13: 240 | K13: 811 | L13: 134
A14: 1.1.1. | B14: Численность обучающихся общеобразовательных организациях в сельской местности на сентябрь отчетного года | C14: человек | D14: =SUM(E14:L14) -> 0 | E14: 0 | F14: 0 | G14: 0 | H14: 0 | I14: 0 | J14: 0 | K14: 0 | L14: 0
A15: 1.1.2. | B15: Численность обучающихся общеобразовательных организаций городской местности на сентябрь отчетного года | C15: человек | D15: 4956 | E15: 504 | F15: 566 | G15: 627 | H15: 990 | I15: 1084 | J15: 240 | K15: 811 | L15: 134
A16: 1.2. | B16: Численность учителей общеобразовательных организаций на сентябрь отчетного года | C16: человек | D16: 275 | E16: 35 | F16: 28 | G16: 38 | H16: 52 | I16: 58 | J16: 14 | K16: 46 | L16: 4
A17: 1.2.1. | B17: Численность учителей городских общеобразовательных организаций на сентябрь отчетного года | C17: человек | D17: 275 | E17: 35 | F17: 28 | G17: 38 | H17: 52 | I17: 58 | J17: 14 | K17: 46 | L17: 4
A18: 1.2.2. | B18: Численность учителей сельских общеобразовательных организаций на сентябрь отчетного года | C18: человек | D18: 0 | E18: 0 | F18: 0 | G18: 0 | H18: 0 | I18: 0 | J18: 0 | K18: 0 | L18: 0
A19: 1.3. | B19: Численность учителей общеобразовательных организаций на сентябрь отчетного года не старше 35 лет | C19: человек | D19: 54 | E19: 3 | F19: 2 | G19: 7 | H19: 11 | I19: 10 | J19: 3 | K19: 16 | L19: 2
A20: 1.3.1 | B20: Численность учителей городских общеобразовательных организаций на сентябрь отчетного года не старше 35 лет | C20: человек | D20: 54 | E20: 3 | F20: 2 | G20: 7 | H20: 11 | I20: 10 | J20: 3 | K20: 16 | L20: 2
A21: 1.3.2 | B21: Численность учителей сельских общеобразовательных организаций на сентябрь отчетного года не старше 35 лет | C21: человек | D21: 0 | E21: 0 | F21: 0 | G21: 0 | H21: 0 | I21: 0 | J21: 0 | K21: 0 | L21: 0
A22: 2. ПЕРЕХОД НА НОВЫЕ ОБРАЗОВАТЕЛЬНЫЕ СТАНДАРТЫ
A23: 2.1 | B23: Доля учащихся общеобразовательных организаций, обучающихся по ФГОС в текущем учебном году | C23: процентов | D23: =SUM(E23:L23) -> 307 | F23: 53 | G23: 54 | H23: 52 | I23: 52 | J23: 45 | K23: 51 | L23: 0 | M23: 38.3
A24: 2.1.1 | B24: Доля учащихся основного общего образования, обучающихся по ФГОС в текущем учебном году | C24: процентов | D24: =SUM(E24:L24) -> 158 | E24: 41 | F24: 10 | G24: 11 | H24: 23 | I24: 41 | J24: 23 | K24: 9 | L24: 0 | M24: =D24/8 -> 19.75
A25: 2.1.2 | B25: Доля учащихся среднего общего образования, обучающихся по ФГОС в текущем учебном году | C25: процентов | D25: 0 | E25: 0 | F25: 0 | G25: 0 | H25: 0 | I25: 0 | K25: 0 | L25: 0 | M25: =D25/8 -> 0
A26: 2.2 | B26: Среднее количество часов внеурочной деятельности в классах начальной школы, обучающихся по ФГОС (в неделю) | C26: часов | D26: 70 | E26: 10 | F26: 10 | G26: 10 | H26: 10 | I26: 10 | J26: 10 | K26: 10 | L26: 0
A27: 2.3 | B27: Среднее количество часов внеурочной деятельности в классах основной школы, обучающихся по ФГОС (в неделю) | C27: часов | D27: 70 | E27: 10 | F27: 10 | G27: 10 | H27: 10 | I27: 10 | J27: 10 | K27: 10 | L27: 0
A28: 2.4 | B28: Доля общеобразовательных организаций, в которых используются современные оценочные процедуры для оценки достижений обучающихся по ФГОС в начальных классах:
A29: 2.4.1 | B29: - механизмы накопительной системы оценивания (портфолио и др.) | C29: процентов | D29: =SUM(E29:K29) -> 643.1 | E29: 100 | F29: 43.1 | G29: 100 | H29: 100 | I29: 100 | J29: 100 | K29: 100 | L29: 0 | M29: =D29/8 -> 80.3875
A30: 2.4.2 | B30: - проектные, творческие исследовательские работы и др. | C30: процентов | D30: =SUM(E30:K30) -> 593.1 | E30: 100 | F30: 43.1 | G30: 100 | H30: 80 | I30: 100 | J30: 70 | K30: 100 | L30: 0 | M30: =D30/8 -> 74.1375
A31: 2.4.3 | B31: - иные виды оценивания, отличные от пятибалльной системы | C31: процентов | D31: =SUM(E31:K31) -> 431.1 | E31: 100 | F31: 43.1 | G31: 8 | H31: 100 | I31: 50 | J31: 30 | K31: 100 | L31: 0 | M31: =D31/8 -> 53.8875
A32: 2.5 | B32: Доля обучающихся по ФГОС, которым обеспечена возможность пользоваться в соответствии с ФГОС:
A33: 2.5.1 | B33: - учебным оборудованием для практических работ | C33: процентов | D33: =SUM(E33:K33) -> 554 | E33: 100 | F33: 53 | G33: 100 | H33: 100 | I33: 1 | J33: 100 | K33: 100 | L33: 0 | M33: =D33/8 -> 69.25
A34: 2.5.2 | B34: - интерактивными учебными пособиями (доска, мультимедийные установки и др.) | C34: процентов | D34: =SUM(E34:K34) -> 554 | E34: 100 | F34: 53 | G34: 100 | H34: 100 | I34: 1 | J34: 100 | K34: 100 | L34: 0 | M34: =D34/8 -> 69.25
A35: 2.6 | B35: Доля руководителей и педагогических работников общеобразовательных организаций, прошедших повышение квалификации и/или профессиональную переподготовку для работы в соответствии с ФГОС, в общей численности руководителей и педагогических работников | C35: процентов | D35: 590 | E35: 100 | F35: 95 | G35: 95 | H35: 98 | I35: 16 | J35: 86 | K35: 100 | L35: 0 | M35: 73.75
A36: 2.7 | B36: Доля обучающихся, которые имеют возможность пользоваться современной библиотекой (от общей численности обучающихся) | C36: процентов | D36: 451 | E36: 100 | F36: 100 | G36: 50 | H36: 100 | I36: 1 | J36: 0 | K36: 100 | L36: 0 | M36: 56.375
A37: 3. РАЗВИТИЕ СИСТЕМЫ ПОДДЕРЖКИ ТАЛАНТЛИВЫХ ДЕТЕЙ
A38: 3.1 | B38: Доля обучающихся 5-11 классов, принявших участие в школьном этапе Всероссийской олимпиады школьников, в общей численности обучающихся 5-11 классов | D38: =SUM(E38:L38) -> 300 | E38: 60 | F38: 53 | G38: 65 | I38: 0 | J38: 80 | K38: 42 | L38: 0
A39: 3.2 | B39: Доля обучающихся 7-11 классов, ставших победителями и призерами муниципального этапа Всероссийской олимпиады школьников (в общей численности учащихся 7-11 классов) | D39: =SUM(E39:L39) -> 100 | E39: 10 | F39: 9 | G39: 31 | I39: 0 | J39: 5 | K39: 45 | L39: 0
A40: 3.3 | B40: Доля обучающихся 9-11 классов, ставших победителями и призерами регионального этапа Всероссийской олимпиады школьников, в общей численности обучающихся 9-11 классов | D40: 110 | E40: 2 | F40: 0 | G40: 0 | H40: 0 | I40: 108 | J40: 0 | K40: 0 | L40: 0
A41: 3.4 | B41: Доля обучающихся 9-11 классов, принявших участие в заключительном этапе Всероссийской олимпиады школьников, в общей численности обучающихся 9-11 классов | D41: 4 | E41: 2 | F41: 0 | G41: 0 | H41: 0 | I41: 0 | J41: 2 | K41: 0 | L41: 0
A42: 3.5.1 | B42: Численность обучающихся, приявших участие в олимпиадах школьников (кроме Всероссийской олимпиады школьников) | D42: 1558 | E42: 22 | F42: 81 | G42: 235 | H42: 26 | I42: 905 | J42: 15 | K42: 228 | L42: 46
A43: 3.5.2 | B43: Доля обучающихся, приявших участие в олимпиадах для школьников (кроме Всероссийской олимпиады школьников), проводимых сторонними организациями и учреждениями, в общей численности обучающихся | D43: 215 | E43: 5 | F43: 15 | G43: 37 | H43: 3 | I43: 83 | J43: 6 | K43: 28 | L43: 38
A44: 3.5.3 | B44: Количество призовых мест, занятых обучающимися в очных этапах олимпиад для школьников (кроме Всероссийской олимпиады школьников), проводимых сторонними организациями и учреждениями | D44: 193 | E44: 1 | F44: 13 | G44: 68 | H44: 3 | I44: 96 | J44: 0 | K44: 12 | L44: 0
A45: 3.5.4 | B45: Численность обучающихся, ставших победителями и призерами в олимпиадах для школьников (кроме Всероссийской олимпиады школьников), проводимых сторонними организациями и учреждениями | D45: 456 | E45: 1 | F45: 164 | G45: 75 | H45: 9 | I45: 72 | J45: 0 | K45: 127 | L45: 8
A46: 3.5.5 | B46: Доля обучающихся, ставших победителями и призерами в олимпиадах для школьников (кроме Всероссийской олимпиады школьников), в общей численности обучающихся | D46: 113 | E46: 1 | F46: 29 | G46: 12 | H46: 1 | I46: 7 | J46: 0 | K46: 56 | L46: 7
A47: 3.6. | B47: Доля обучающихся, которым созданы условия для занятий творчеством (в общей численности обучающихся) в специально оборудованных:
A48: 3.6.1. | B48: - студиях | D48: =SUM(E48:L48) -> 300 | F48: 0 | G48: 0 | H48: 100 | I48: 100 | J48: 0 | K48: 100 | L48: 0
A49: 3.6.2. | B49: - актовых залах | D49: =SUM(E49:L49) -> 740 | F49: 100 | G49: 100 | H49: 100 | I49: 100 | J49: 240 | K49: 100 | L49: 0
A50: 3.7. | B50: Объем финансовых средств, целенаправленно выделенных на поддержку одаренных детей и талантливой молодежи
A51: 3.7.1. | B51: - из федерального бюджета | D51: =SUM(E51:L51) -> 120000 | F51: 0 | G51: 0 | H51: 0 | I51: 0 | J51: 0 | K51: 120000 | L51: 0
A52: 3.7.2. | B52: - из регионального бюджета | D52: =SUM(E52:L52) -> 192540 | F52: 0 | G52: 34000 | H52: 0 | I52: 108540 | J52: 0 | K52: 50000 | L52: 0
A53: 3.8. | B53: Доля обучающихся в общеобразовательных организациях, которым оказана поддержка в рамках программ поддержки одаренных детей и талантливой молодежи
A54: 3.8.1. | B54: - на федеральном уровне | D54: =SUM(E54:L54) -> 35 | F54: 0 | G54: 0 | H54: 31 | I54: 4 | J54: 0 | K54: 0 | L54: 0
A55: 3.8.2. | B55: - на региональном уровне | D55: =SUM(E55:L55) -> 46 | F55: 0 | G55: 1 | H55: 0 | I55: 45 | J55: 0 | K55: 0 | L55: 0
A56: 3.9. | B56: На уровне субъекта Российской Федерации утверждены нормативно-правовые акты, закрепляющие методику расчета норматива подушевого финансирования на педагогическое сопровождение развития (образования) талантливых (одаренных) детей | D56: 57544 | F56: 0 | H56: 0 | I56: 57544 | J56: 0 | L56: 0
F57: 0
A58: 4. СОВЕРШЕНСТВОВАНИЕ УЧИТЕЛЬСКОГО КОРПУСА
A59: 4.1. | B59: Доля педагогических работников, прошедших аттестацию на подтверждение занимаемой должности, в общей численности педагогических работников, | C59: процентов | D59: =SUM(E59:L59) -> 172 | E59: 9 | F59: 34 | G59: 40 | H59: 21 | I59: 16 | J59: 21 | K59: 31 | L59: 0 | M59: =D59/8 -> 21.5
A60: 4.1.1 | B60: в том числе молодые педагоги (не старше 35 лет) | C60: процентов | D60: =SUM(E60:L60) -> 28 | E60: 0 | F60: 3 | G60: 0 | H60: 4 | I60: 0 | J60: 0 | K60: 21 | L60: 0 | M60: 3.5
A61: 4.2 | B61: Доля педагогических работников, прошедших аттестацию на присвоение квалификационной категории (первой и высшей), в общей численности педагогических работников, | C61: процентов | D61: 528 | E61: 80 | F61: 55 | G61: 45 | H61: 73 | I61: 82 | J61: 35 | K61: 58 | L61: 100 | M61: 66
A62: 4.2.1 | B62: в том числе молодые педагоги (не старше 35 лет) | C62: процентов | D62: 94 | E62: 9 | G62: 11 | H62: 11 | I62: 17 | J62: 0 | K62: 6 | L62: 40 | M62: 11.75
A63: 4.3 | B63: Доля педагогических работников, прошедших аттестацию на присвоение первой квалификационной категории, в общей численности педагогических работников, | C63: процентов | D63: 355 | E63: 49 | F63: 41 | G63: 33 | H63: 48 | I63: 44 | J63: 21 | K63: 39 | L63: 80 | M63: 44.375
A64: 4.3.1 | B64: в том числе молодые педагоги (не старше 35 лет) | C64: процентов | D64: 118 | E64: 9 | F64: 0 | G64: 15 | H64: 10 | I64: 38 | J64: 0 | K64: 6 | L64: 40 | M64: 14.75
A65: 4.4 | B65: Доля педагогических работников, прошедших аттестацию на присвоение высшей квалификационной категории, в общей численности педагогических работников | C65: процентов | D65: 173 | E65: 31 | F65: 14 | G65: 13 | H65: 25 | I65: 37 | J65: 14 | K65: 19 | L65: 20 | M65: 21.625
A66: 4.4.1 | B66: в том числе молодые педагоги (не старше 35 лет) | C66: процентов | D66: 2 | E66: 0 | F66: 0 | G66: 0 | H66: 2 | I66: 0 | J66: 0 | K66: 0 | L66: 0 | M66: 0.25
A67: 4.5 | B67: Численность педагогических работников (учителей и прочих педагогических работников), принятых на работу в текущем году | C67: человек | D67: 9 | E67: 0 | F67: 0 | G67: 2 | H67: 0 | I67: 6 | J67: 1 | K67: 0
A68: 4.5.1 | B68: в том числе молодые педагоги (не старше 35 лет) | C68: человек | D68: 4 | E68: 0 | F68: 0 | G68: 2 | H68: 0 | I68: 2 | J68: 0 | K68: 0
A69: 4.6 | B69: Численность педагогических работников (учителей и прочих педагогических работников), принятых на работу в текущем году и включенных в программу по поддержке молодых специалистов выплатами на период от 2-х и более лет | C69: человек | D69: 3 | E69: 0 | F69: 0 | G69: 1 | H69: 0 | I69: 2 | J69: 0 | K69: 0 | L69: 0
A70: 4.7 | B70: Численность молодых педагогов (учителей и прочих педагогических работников) (не старше 35 лет), принятых на работу в текущем году в общеобразовательные учреждения, расположенные в:
A71: 4.7.1 | B71: сельской местности | C71: человек | D71: =SUM(E71:L71) -> 0 | E71: 0 | F71: 0 | G71: 0 | H71: 0 | I71: 0 | J71: 0 | K71: 0 | L71: 0
A72: 4.7.2 | B72: городской местности | C72: человек | D72: =SUM(E72:L72) -> 2 | E72: 0 | F72: 0 | G72: 2 | H72: 0 | I72: 0 | J72: 0 | K72: 0 | L72: 0
A73: 4.8 | B73: Численность педагогических работников (учителей и прочих педагогических работников), принятых на работу в текущем году и обеспеченных жильем (общежитие, отдельная квартира):
A74: 4.8.1 | B74: отдельной благоустроенной квартирой | C74: человек | D74: =SUM(E74:L74) -> 4 | E74: 0 | F74: 0 | G74: 0 | H74: 0 | I74: 4 | J74: 0 | K74: 0
A75: 4.8.2 | B75: общежитием | C75: человек | D75: =SUM(E75:L75) -> 0 | E75: 0 | F75: 0 | G75: 0 | H75: 0 | I75: 0 | J75: 0 | K75: 0 | L75: 0
A76: 4.9 | B76: Численность учителей, которые являются наставниками для молодых специалистов | C76: человек | D76: 17 | E76: 0 | F76: 1 | G76: 2 | H76: 3 | I76: 1 | J76: 1 | K76: 9 | L76: 0
A77: 4.10 | B77: Численность учителей, которые являются наставниками для молодых специалистов и которым в отчетном году была оказана моральная поддержка (присвоение званий, награждение и т.д.) | C77: человек | D77: 8 | E77: 0 | F77: 1 | G77: 2 | H77: 2 | I77: 0 | J77: 1 | K77: 2 | L77: 0
A78: 4.11 | B78: Численность учителей, которые являются наставниками для молодых специалистов и которым в отчетном году была оказана материальная поддержка (доплаты из стимулирующей части фонда заработной платы, выплаты по отдельно принятым нормативным правовым актам и т.д.) | C78: человек | D78: 17 | E78: 0 | F78: 1 | G78: 2 | H78: 3 | I78: 1 | J78: 1 | K78: 9 | L78: 0
A79: 4.12 | B79: Численность учителей, работающих в созданных в субъекте Российской Федерации профессиональных сообществах (ассоциации учителей-предметников иные общественные профессиональные объединения) | C79: человек | D79: 120 | E79: 20 | F79: 9 | G79: 38 | H79: 2 | I79: 19 | J79: 7 | K79: 22 | L79: 3
A80: 4.13 | B80: Количество работающих в субъекте Российской Федерации профессиональных сообществ (ассоциации учителей-предметников иные общественные профессиональные объединения) | C80: единиц | D80: 46 | F80: 9 | G80: 10 | H80: 23 | J80: 0 | K80: 4 | L80: 0
A81: 4.14 | B81: Доля педагогических работников (учителей и прочих педагогических работников), прошедших в истекшем учебном году курсы повышения квалификации в общей численности педагогических работников (учителей и прочих педагогических работников) общеобразовательных организаций, в том числе: | C81: процентов | D81: 439 | E81: 16 | F81: 94 | G81: 100 | H81: 39 | I81: 16 | J81: 87 | K81: 67 | L81: 20
A82: 4.14.1 | B82: по персонифицированной модели повышения квалификации | C82: процентов | D82: 422 | E82: 8 | F82: 94 | G82: 100 | H82: 34 | I82: 12 | J82: 87 | K82: 67 | L82: 20
A83: 5. ПОДДЕРЖКА СОЦИАЛИЗАЦИИ И САМОРЕАЛИЗАЦИИ ДЕТЕЙ И МОЛОДЕЖИ
A84: 5.1. | B84: На уровне субъекта Российской Федерации утверждены региональная программа/комплекс мер по развитию системы профессиональной ориентации и общественно полезной деятельности учащихся, включая сетевое, межведомственное и межотраслевое взаимодействие | C84: Да/Нет | D84: =SUM(E84:L84) -> 3 | E84: 0 | F84: 1 | J84: 1 | K84: 1
A85: 5.2. | B85: На уровне субъекта Российской Федерации созданы многофункциональные центры прикладных квалификаций | C85: Да/Нет | D85: =SUM(E85:L85) -> 1 | E85: 0 | F85: 1 | I85: =-I860 -> 0 | J85: 0
A86: 5.3. | B86: Доля обучающихся, которым предоставлена возможность одновременно с получением среднего общего образования пройти профессиональную подготовку по выбранным ими профессиям, в том числе с использованием инфраструктуры профессиональных образовательных организаций | C86: процентов | D86: 70 | E86: 0 | F86: 50 | G86: 0 | H86: 0 | I86: 0 | J86: 0 | K86: 0 | L86: 20 | M86: =D86/8 -> 8.75
A87: 5.4.3. | B87: Доля обучающихся, с которыми организована работа по созданию портфолио обучающихся (учета достижений) общеобразовательных организаций в целях их дальнейшего профессионального самоопределения и формирования индивидуальной траектории развития | C87: процентов | D87: 500 | E87: 0 | F87: 100 | G87: 100 | H87: 80 | I87: 100 | J87: 20 | K87: 100 | L87: 0 | M87: 62.5
A88: 5.4.4. | B88: На уровне субъекта Российской Федерации создана система мер, позволяющая на базе анализа уровня знаний, практических навыков рекомендовать варианты будущего трудоустройства по техническим специальностям | C88: Да/Нет | D88: 3 | E88: 0 | F88: 1 | I88: 0 | J88: 1 | K88: 1
A89: 5.4.5. | B89: Количество различных форм организации и проведения профориентационной деятельности используемых на уровне субъекта Российской Федерации | C89: единиц | D89: 20 | E89: 0 | F89: 1 | G89: 1 | I89: 5 | J89: 5 | K89: 5 | L89: 3
A90: 6. ДОСТИЖЕНИЕ ПОКАЗАТЕЛЕЙ ПЛАНА ДЕЙСТВИЙ ПО МОДЕРНИЗАЦИИ ОБЩЕГО ОБРАЗОВАНИЯ
A91: 6.1. | B91: Охват уровней общего образования, на которых реализуются возможности независимой оценки качества образования | C91: процентов | D91: =SUM(E91:L91) -> 500 | F91: 100 | G91: 100 | I91: 100 | J91: 100 | K91: 100
A92: 6.2. | B92: Участие субъекта Российской Федерации, в заключительном этапе всероссийской олимпиады школьников в соответствии с установленным минимальным баллом | C92: Да/нет | D92: =SUM(E92:L92) -> 0 | F92: 0 | I92: 0
A93: 6.3. | B93: Доля олимпиад школьников, организуемых двумя и более учреждениями высшего профессионального образования | C93: процентов | D93: 107 | G93: 100 | I93: 7 | J93: 0 | M93: =D93/8 -> 13.375
A94: 6.4 | B94: Разработана и реализуется в субъекте Российской Федерации региональная программа поддержки талантливых и одаренных детей | C94: Да/нет | D94: 1 | F94: 1 | K94: 0
A95: 6.5 | B95: Численность обучающихся в общеобразовательных учреждениях, занимающихся в очно-заочных и заочных (дистанционных) школах | C95: человек | D95: 1176 | E95: 0 | F95: 83 | G95: 323 | H95: 361 | I95: 169 | J95: 75 | K95: 148 | L95: 17
A96: 6.6 | B96: Численность детей школьного возраста, имеющих возможность по выбору получать доступные качественные услуги дополнительного образования (не менее 3 доступных предложений из разных сфер деятельности) | C96: человек | D96: 4447 | E96: 504 | F96: 566 | G96: 627 | H96: 990 | I96: 1084 | J96: 73 | K96: 603
A97: 6.7 | B97: Численность школьников, обучающихся в школах, в которых руководитель образовательного учреждения имеет квалификацию в области управления | C97: человек | D97: 4944 | E97: 504 | F97: 566 | G97: 627 | H97: 990 | I97: 1084 | J97: 240 | K97: 811 | L97: 122
A98: 6.8 | B98: Численность обучающихся в современных зданиях, обладающих современной технологической инфраструктурой и отвечающих строительным нормам и правилам, пожарным требованиям и санитарно-эпидемиологическим правилам и нормативам | C98: человек | D98: 4944 | E98: 504 | F98: 566 | G98: 627 | H98: 990 | I98: 1084 | J98: 240 | K98: 811 | L98: 122
A99: 6.9 | B99: Доля обучающихся, которым обеспечена возможность пользоваться современными медиатеками и библиотеками | C99: процентов | D99: 1004 | E99: 504 | F99: 100 | G99: 100 | H99: 100 | I99: 100 | J99: 0 | K99: 100 | L99: 0 | M99: =D99/8 -> 125.5
A100: 6.10 | B100: Численность детей с ограниченными возможностями здоровья и детей-инвалидов, которым созданы условия для получения качественного общего образования, в том числе с использованием дистанционных образовательных технологий, в общей численности детей с ограниченными возможностями здоровья и детей-инвалидов школьного возраста | C100: человек | D100: 341 | E100: 0 | F100: 85 | G100: 4 | H100: 15 | I100: 42 | J100: 14 | K100: 143 | L100: 38
A101: 6.11 | B101: Численность обучающихся, которым созданы современные условия для занятий физкультурой, в том числе обеспечена возможность пользоваться современно оборудованными спортзалами и спортплощадками | C101: человек | D101: 4822 | E101: 504 | F101: 566 | G101: 627 | H101: 990 | I101: 1084 | J101: 240 | K101: 811 | L101: 0
A102: 6.12 | B102: Численность школьников, обучающихся в зданиях, в которых обеспечено медицинское обслуживание, включая наличие современных медицинских кабинетов | C102: человек | D102: 4822 | E102: 504 | F102: 566 | G102: 627 | H102: 990 | I102: 1084 | J102: 240 | K102: 811 | L102: 0
A103: 6.13 | B103: Количество общеобразовательных организаций, ежегодно представляющих общественности публичный отчет, обеспечивающий открытость и прозрачность образовательной и хозяйственной деятельности | C103: единиц | D103: 7 | F103: 1 | G103: 1 | H103: 1 | I103: 1 | J103: 1 | K103: 1 | L103: 1
A104: 6.14 | B104: Количество негосударственных общеобразовательных учреждений, которым обеспечен доступ к бюджетному финансированию по нормативу | C104: единиц | D104: 1 | F104: 0 | G104: 0 | I104: 0 | J104: 0 | K104: 1 | L104: 0
A105: 6.15 | B105: Количество общеобразовательных организаций, ставших бюджетными организациями | C105: единиц | D105: 3 | F105: 1 | G105: 1 | H105: 1 | I105: 0 | J105: 0 | K105: 0 | L105: 0
A106: 6.16 | B106: Количество общеобразовательных организаций, ставших автономными учреждениями | C106: единиц | D106: 2 | F106: 0 | G106: 0 | I106: 1 | J106: 0 | K106: 1 | L106: 0
A107: 6.17 | B107: Количество общеобразовательных организаций, ставших казенными учреждениями | C107: единиц | D107: 0 | F107: 0 | G107: 0 | I107: 0 | J107: 0 | K107: 0 | L107: 0
A108: 6.18 | B108: Удельный вес численности обучающихся в государственных и муниципальных общеобразовательных организациях, которым предоставлена возможность обучаться в соответствии с основными современными требованиями (с учетом федеральных государственных образовательных стандартов), в общей численности обучающихся государственных и муниципальных общеобразовательных организаций | C108: процентов | D108: 459 | E108: 100 | F108: 53 | G108: 54 | I108: 52 | J108: 100 | K108: 100 | L108: 0 | M108: =D108/8 -> 57.375

Sheet Sheet2
A1: город | C1: Республика Адыгея (Адыгея)
A2: село | C2: Республика Алтай
C3: Республика Башкортостан
C4: Республика Бурятия
C5: Республика Дагестан
C6: Республика Ингушетия
C7: Кабардино-Балкарская Республика
C8: Республика Калмыкия
C9: Карачаево-Черкесская Республика
A10: Да | C10: Республика Карелия
A11: Нет | C11: Республика Коми
C12: Республика Крым
C13: Республика Марий Эл
C14: Республика Мордовия
C15: Республика Саха (Якутия)
C16: Республика Северная Осетия – Алания
C17: Республика Татарстан (Татарстан)
C18: Республика Тыва
C19: Удмуртская Республика
C20: Республика Хакасия
C21: Чеченская Республика
C22: Чувашская Республика – Чувашия
C23: Алтайский край
C24: Забайкальский край
C25: Камчатский край
C26: Краснодарский край
C27: Красноярский край
C28: Пермский край
C29: Приморский край
C30: Ставропольский край
C31: Хабаровский край
C32: Амурская область
C33: Архангельская область
C34: Астраханская область
C35: Белгородская область
C36: Брянская область
C37: Владимирская область
C38: Волгоградская область
C39: Вологодская область
C40: Воронежская область
C41: Ивановская область
C42: Иркутская область
C43: Калининградская область
C44: Калужская область
C45: Кемеровская область
C46: Кировская область
C47: Костромская область
C48: Курганская область
C49: Курская область
C50: Ленинградская область
C51: Липецкая область
C52: Магаданская область
C53: Московская область
C54: Мурманская область
C55: Нижегородская область
C56: Новгородская область
C57: Новосибирская область
C58: Омская область
C59: Оренбургская область
C60: Орловская область
C61: Пензенская область
C62: Псковская область
C63: Ростовская область
C64: Рязанская область
C65: Самарская область
C66: Саратовская область
C67: Сахалинская область
C68: Свердловская область
C69: Смоленская область
C70: Тамбовская область
C71: Тверская область
C72: Томская область
C73: Тульская область
C74: Тюменская область
C75: Ульяновская область
C76: Челябинская область
C77: Ярославская область
C78: г. Москва
C79: г. Санкт-Петербург
C80: г. Севастополь
C81: Еврейская автономная область
C82: Ненецкий автономный округ
C83: Ханты-Мансийский автономный округ - Югра
C84: Чукотский автономный округ
C85: Ямало-Ненецкий автономный округ

Sheet Sheet3
